fUST/lending_fUST_20240610
["ID","MTS","AMOUNT","RATE_DAILY","PERIOD"]
[328948571,1718025060909,-3000.0,0.0002673,2]
[328948572,1718025060919,-3000.0,0.0002674,2]
[328948573,1718025060929,-3000.0,0.0002675,2]
[328948574,1718025060938,-3000.0,0.0002676,2]
[328948575,1718025060949,-962.22558381,0.00026766,2]
[328948576,1718025060960,-3000.0,0.0002677,2]
[328948577,1718025060970,-3000.0,0.0002678,2]
[328948578,1718025060980,-3000.0,0.0002679,2]
[328948579,1718025060989,-962.22558381,0.00026798,2]
[328948580,1718025060999,-3000.0,0.000268,2]
[328948581,1718025061009,-3000.0,0.0002681,2]
[328948582,1718025061018,-153.78100633,0.00026818,2]
[328948583,1718025061028,-3000.0,0.0002682,2]
[328948584,1718025061037,-162.61184894,0.00026821,2]
[328948585,1718025061048,-497.73517373,0.00026826,2]
[328948586,1718025061057,-172.32552541,0.00026827,2]
[328948587,1718025061067,-3000.0,0.0002683,2]
[328948588,1718025061077,-3000.0,0.0002684,2]
[328948589,1718025061087,-962.22558381,0.00026845,2]
[328948590,1718025061096,-750.0,0.00026849,2]
[328948591,1718025061107,-3000.0,0.0002685,2]
[328948592,1718025061117,-3000.0,0.0002686,2]
[328948593,1718025061126,-3000.0,0.0002687,2]
[328948594,1718025061135,-3000.0,0.0002688,2]
[328948595,1718025061197,-3000.0,0.0002689,2]
[328948596,1718025061207,-300.0,0.000269,2]
[328948597,1718025061216,-3000.0,0.000269,2]
[328948598,1718025061225,-497.73517373,0.00026901,2]
[328948599,1718025061235,-3000.0,0.0002691,2]
[328948600,1718025061245,-3000.0,0.0002692,2]
[328948601,1718025061254,-962.22558381,0.00026924,2]
[328948602,1718025061264,-3000.0,0.0002693,2]
[328948603,1718025061276,-3000.0,0.0002694,2]
[328948604,1718025061285,-3000.0,0.0002695,2]
[328948605,1718025061295,-500.0,0.0002695,2]
[328948606,1718025061305,-500.0,0.0002695,2]
[328948607,1718025061315,-5752.633166,0.0002696,2]
[328948608,1718025061326,-497.73517373,0.00026997,2]
[328948609,1718025061336,-155.01395126,0.00027,2]
[328948610,1718025061346,-5389.93784918,0.00027,2]
[328948611,1718025061359,-10000.0,0.00027,2]
[328948612,1718025061370,-10000.0,0.00027,2]
[328948613,1718025061380,-10000.0,0.00027,2]
[328948614,1718025061391,-10000.0,0.00027,2]
[328948615,1718025061401,-12818.25249743,0.00027,2]
[328948616,1718025061412,-1636.28319893,0.00027,2]
[328948617,1718025061422,-200.0,0.00027,2]
[328948618,1718025061432,-160.194328,0.00027021,2]
[328948619,1718025061442,-151.26933681,0.00027052,2]
[328948620,1718025061452,-152.42491812,0.00027067,2]
[328948621,1718025061462,-154.92772765,0.00027084,2]
[328948622,1718025061473,-154.7,0.000271,3]
[328948623,1718025061483,-154.7,0.000271,3]
[328948624,1718025061493,-154.7,0.000271,3]
[328948625,1718025061503,-154.7,0.000271,3]
[328948626,1718025061512,-154.7,0.000271,3]
[328948627,1718025061523,-154.7,0.000271,3]
[328948628,1718025061534,-154.7,0.000271,3]
[328948629,1718025061544,-154.7,0.000271,3]
[328948630,1718025061554,-154.7,0.000271,3]
[328948631,1718025061565,-154.7,0.000271,3]
[328948632,1718025061576,-195.12943519,0.00027109,2]
[328948633,1718025061586,-962.22558381,0.00027179,2]
[328948634,1718025061597,-497.73517373,0.00027221,2]
[328948635,1718025061608,-285.0,0.00027223,2]
[328948636,1718025061618,-500.0,0.00027224,2]
[328948637,1718025061628,-500.0,0.00027224,2]
[328948638,1718025061638,-151.26933681,0.00027364,2]
[328948639,1718025061651,-497.73517373,0.00027394,2]
[328948640,1718025061675,-16253.60833338,0.00027396,2]
[328948641,1718025061691,-316.1537121,0.00027397,2]
[328948642,1718025061709,-500.0,0.00027397,2]
[328948643,1718025061731,-500.0,0.00027397,2]
[328948644,1718025061750,-500.0,0.00027397,2]
[328948645,1718025061769,-500.0,0.00027397,2]
[328948646,1718025061786,-500.0,0.00027397,2]
[328948647,1718025061801,-437.76818108,0.00027397,2]
[328948648,1718025061819,-464.00718346,0.00027397,2]
[328948649,1718025061840,-500.0,0.00027397,2]
[328948650,1718025061857,-500.0,0.00027397,2]
[328948651,1718025061872,-500.0,0.00027397,2]
[328948652,1718025061889,-500.0,0.00027397,2]
[328948653,1718025061903,-500.0,0.00027397,2]
[328948654,1718025061919,-500.0,0.00027397,2]
[328948655,1718025061933,-500.0,0.00027397,2]
[328948656,1718025061948,-500.0,0.00027397,2]
[328948657,1718025061963,-500.0,0.00027397,2]
[328948658,1718025061978,-500.0,0.00027397,2]
[328948659,1718025061993,-500.0,0.00027397,2]
[328948660,1718025062008,-500.0,0.00027397,2]
[328948661,1718025062022,-500.0,0.00027397,2]
[328948662,1718025062037,-500.0,0.00027397,2]
[328948663,1718025062052,-500.0,0.00027397,2]
[328948664,1718025062067,-500.0,0.00027397,2]
[328948665,1718025062082,-500.0,0.00027397,2]
[328948666,1718025062096,-500.0,0.00027397,2]
[328948667,1718025062114,-500.0,0.00027397,2]
[328948668,1718025062130,-426.5581405,0.00027397,2]
[328948669,1718025062144,-500.0,0.00027397,2]
[328948670,1718025062159,-500.0,0.00027397,2]
[328948671,1718025062175,-500.0,0.00027397,2]
[328948672,1718025062191,-500.0,0.00027397,2]
[328948673,1718025062206,-500.0,0.00027397,2]
[328948674,1718025062221,-500.0,0.00027397,2]
[328948675,1718025062235,-500.0,0.00027397,2]
[328948676,1718025062250,-500.0,0.00027397,2]
[328948677,1718025062265,-236.91168404,0.00027397,2]
[328948678,1718025062282,-500.0,0.00027397,2]
[328948679,1718025062297,-500.0,0.00027397,2]
[328948680,1718025062311,-500.0,0.00027397,2]
[328948681,1718025062326,-500.0,0.00027397,2]
[328948682,1718025062341,-500.0,0.00027397,2]
[328948683,1718025062362,-500.0,0.00027397,2]
[328948684,1718025062451,-500.0,0.00027397,2]
[328948685,1718025062462,-500.0,0.00027397,2]
[328948686,1718025062473,-500.0,0.00027397,2]
[328948687,1718025062484,-500.0,0.00027397,2]
[328948688,1718025062494,-500.0,0.00027397,2]
[328948689,1718025062504,-500.0,0.00027397,2]
[328948690,1718025062514,-500.0,0.00027397,2]
[328948691,1718025062525,-500.0,0.00027397,2]
[328948692,1718025062535,-500.0,0.00027397,2]
[328948693,1718025062545,-500.0,0.00027397,2]
[328948694,1718025062555,-500.0,0.00027397,2]
[328948695,1718025062565,-500.0,0.00027397,2]
[328948696,1718025062575,-500.0,0.00027397,2]
[328948697,1718025062585,-500.0,0.00027397,2]
[328948698,1718025062595,-500.0,0.00027397,2]
[328948699,1718025062606,-500.0,0.00027397,2]
[328948700,1718025062616,-500.0,0.00027397,2]
[328948701,1718025062628,-500.0,0.00027397,2]
[328948702,1718025062637,-500.0,0.00027397,2]
[328948703,1718025062648,-500.0,0.00027397,2]
[328948704,1718025062657,-27015.6117625,0.00027397,2]
[328948705,1718025062669,-962.22558381,0.00027443,2]
[328948706,1718025062680,-162.61184894,0.00027482,2]
[328948707,1718025062690,-500.0,0.00027498,2]
[328948708,1718025062700,-500.0,0.00027498,2]
[328948709,1718025062711,-154.7,0.000275,3]
[328948710,1718025062721,-154.7,0.000275,3]
[328948711,1718025062731,-154.7,0.000275,3]
[328948712,1718025062742,-154.7,0.000275,3]
[328948713,1718025062752,-154.7,0.000275,3]
[328948714,1718025062763,-154.7,0.000275,3]
[328948715,1718025062773,-154.7,0.000275,3]
[328948716,1718025062784,-154.7,0.000275,3]
[328948717,1718025062794,-154.7,0.000275,3]
[328948718,1718025062805,-154.7,0.000275,3]
[328948719,1718025062815,-497.73517373,0.00027515,2]
[328948720,1718025062826,-151.26933681,0.00027515,2]
[328948721,1718025062837,-962.22558381,0.00027519,2]
[328948722,1718025062846,-152.42491812,0.00027548,2]
[328948723,1718025062861,-497.73517373,0.00027572,2]
[328948724,1718025062871,-497.73517373,0.0002762,2]
[328948725,1718025062882,-962.22558381,0.00027643,2]
[328948726,1718025062892,-151.26933681,0.00027673,2]
[328948727,1718025062902,-162.61184894,0.00027681,2]
[328948728,1718025062912,-543.0,0.000277,2]
[328948729,1718025062923,-543.0,0.000277,2]
[328948730,1718025062933,-600.0,0.00027765,2]
[328948731,1718025062943,-500.0,0.00027772,2]
[328948732,1718025062954,-500.0,0.00027772,2]
[328948733,1718025062963,-83535.48874035,0.000278,2]
[328948734,1718025062974,-195.12943519,0.00027878,2]
[328948735,1718025062984,-962.22558381,0.00027892,2]
[328948736,1718025062994,-300.0,0.000279,2]
[328948737,1718025063004,-497.73517373,0.00027905,2]
[328948738,1718025063013,-152.42491812,0.00027946,2]
[328948739,1718025063024,-1152.0,0.00027973,2]
[328948740,1718025063033,-151.26933681,0.0002799,2]
[328948741,1718025063043,-155.01395126,0.00028,2]
[328948742,1718025063054,-584.58597489,0.00028,2]
[328948743,1718025063064,-646.54906766,0.00028,2]
[328948744,1718025063074,-154.7,0.00028,3]
[328948745,1718025063084,-154.7,0.00028,3]
[328948746,1718025063094,-154.7,0.00028,3]
[328948747,1718025063107,-154.7,0.00028,3]
[328948748,1718025063117,-154.7,0.00028,3]
[328948749,1718025063127,-154.7,0.00028,3]
[328948750,1718025063137,-154.7,0.00028,3]
[328948751,1718025063147,-154.7,0.00028,3]
[328948752,1718025063156,-154.7,0.00028,3]
[328948753,1718025063166,-154.7,0.00028,3]
[328948754,1718025063176,-152.42491812,0.00028006,2]
[328948755,1718025063186,-152.42491812,0.00028009,2]
[328948756,1718025063195,-962.22558381,0.00028028,2]
[328948757,1718025063205,-152.42491812,0.00028038,2]
[328948758,1718025063215,-500.0,0.00028046,2]
[328948759,1718025063225,-500.0,0.00028046,2]
[328948760,1718025063235,-600.0,0.00028054,2]
[328948761,1718025063245,-151.26933681,0.00028071,2]
[328948762,1718025063255,-152.42491812,0.00028075,2]
[328948763,1718025063264,-497.73517373,0.00028082,2]
[328948764,1718025063279,-152.42491812,0.00028103,2]
[328948765,1718025063288,-152.42491812,0.00028113,2]
[328948766,1718025063298,-154.92772765,0.00028133,2]
[328948767,1718025063308,-151.26933681,0.00028152,2]
[328948768,1718025063319,-497.73517373,0.00028163,2]
[328948769,1718025063329,-962.22558381,0.00028202,2]
[328948770,1718025063339,-500.0,0.0002832,2]
[328948771,1718025063349,-500.0,0.0002832,2]
[328948772,1718025063364,-497.73517373,0.00028321,2]
[328948773,1718025063374,-152.42491812,0.00028332,2]
[328948774,1718025063385,-497.73517373,0.00028337,2]
[328948775,1718025063395,-600.0,0.00028344,2]
[328948776,1718025063405,-152.42491812,0.00028387,2]
[328948777,1718025063415,-497.73517373,0.00028391,2]
[328948778,1718025063425,-154.7,0.000285,3]
[328948779,1718025063434,-154.7,0.000285,3]
[328948780,1718025063443,-154.7,0.000285,3]
[328948781,1718025063453,-154.7,0.000285,3]
[328948782,1718025063463,-154.7,0.000285,3]
[328948783,1718025063473,-154.7,0.000285,3]
[328948784,1718025063483,-154.7,0.000285,3]
[328948785,1718025063493,-154.7,0.000285,3]
[328948786,1718025063503,-154.7,0.000285,3]
[328948787,1718025063513,-154.7,0.000285,3]
[328948788,1718025063522,-154.92772765,0.00028503,2]
[328948789,1718025063532,-497.7351738,0.00028524,2]
[328948790,1718025063543,-152.42491812,0.00028534,2]
[328948791,1718025063552,-962.22558381,0.00028536,2]
[328948792,1718025063561,-151.26933681,0.00028539,2]
[328948793,1718025063571,-152.42491817,0.00028561,2]
[328948794,1718025063582,-151.26933681,0.00028588,2]
[328948795,1718025063591,-500.0,0.00028594,2]
[328948796,1718025063602,-500.0,0.00028594,2]
[328948797,1718025063613,-151.01359122,0.00028601,2]
[328948798,1718025063623,-962.22558381,0.00028614,2]
[328948799,1718025063635,-1000.0,0.00028629,2]
[328948800,1718025063645,-153.76627968,0.00028632,3]
[328948801,1718025063654,-767.85577405,0.00028636,2]
[328948802,1718025063664,-162.61184894,0.00028669,2]
[328948803,1718025063673,-151.26933693,0.00028687,2]
[328948804,1718025063682,-2000.0,0.000287,2]
[328948805,1718025063692,-2000.0,0.000287,2]
[328948806,1718025063702,-1028.0,0.000287,2]
[328948807,1718025063712,-500.0,0.000287,2]
[328948808,1718025063722,-3580.01008431,0.00028733,2]
[328948809,1718025063732,-300.0,0.00028742,2]
[328948810,1718025063800,-962.22558381,0.00028757,2]
[328948811,1718025063810,-962.22558406,0.00028784,2]
[328948812,1718025063820,-300.0,0.00028817,2]
[328948813,1718025063830,-500.0,0.00028868,2]
[328948814,1718025063840,-500.0,0.00028868,2]
[328948815,1718025063851,-300.0,0.0002887,2]
[328948816,1718025063862,-500.0,0.00028875,2]
[328948817,1718025063872,-173.09676932,0.00028885,2]
[328948818,1718025063883,-6064.86225794,0.00028896,2]
[328948819,1718025063892,-160.0,0.000289,2]
[328948820,1718025063902,-300.0,0.000289,2]
[328948821,1718025063911,-254.0,0.000289,2]
[328948822,1718025063920,-254.0,0.000289,2]
[328948823,1718025063930,-254.0,0.000289,2]
[328948824,1718025063940,-508.0,0.000289,2]
[328948825,1718025063950,-508.0,0.000289,2]
[328948826,1718025063960,-508.0,0.000289,2]
[328948827,1718025063970,-159.03,0.0002891,35]
[328948828,1718025063979,-249.0,0.0002891,35]
[328948829,1718025063989,-249.0,0.0002891,35]
[328948830,1718025063999,-326.47314121,0.00028913,2]
[328948831,1718025064008,-304.0741033,0.00028913,2]
[328948832,1718025064018,-218.8889186,0.00028913,2]
[328948833,1718025064028,-158.01011982,0.00028913,2]
[328948834,1718025064037,-174.53647813,0.00028913,2]
[328948835,1718025064047,-291.09975244,0.00028913,2]
[328948836,1718025064057,-195.31360129,0.00028913,2]
[328948837,1718025064067,-301.02784226,0.00028913,2]
[328948838,1718025064077,-173.27617835,0.00028914,2]
[328948839,1718025064087,-183.06696409,0.00028914,2]
[328948840,1718025064097,-721.95297279,0.00028915,2]
[328948841,1718025064109,-1458.63307318,0.00028915,2]
[328948842,1718025064118,-10539.6485585,0.00028915,2]
[328948843,1718025064128,-685.82864286,0.00028915,2]
[328948844,1718025064138,-5020.29263718,0.00028915,2]
[328948845,1718025064147,-22662.48158598,0.00028915,2]
[328948846,1718025064157,-164.36727464,0.00028915,2]
[328948847,1718025064167,-201.5194358,0.00028915,2]
[328948848,1718025064177,-187.79873222,0.00028915,2]
[328948849,1718025064187,-298.77276158,0.00028915,2]
[328948850,1718025064197,-301.11945779,0.00028915,2]
[328948851,1718025064207,-282.66579838,0.00028915,2]
[328948852,1718025064217,-164.99230098,0.00028915,2]
[328948853,1718025064227,-155.74679865,0.00028915,2]
[328948854,1718025064237,-204.81434597,0.00028915,2]
[328948855,1718025064246,-161.28904267,0.00028915,2]
[328948856,1718025064256,-200.0,0.00028915,2]
[328948857,1718025064266,-304.01173315,0.00028915,2]
[328948858,1718025064278,-289.97449277,0.00028915,2]
[328948859,1718025064288,-200.67239982,0.00028915,2]
[328948860,1718025064298,-306.86917529,0.00028915,2]
[328948861,1718025064308,-155.08126378,0.00028915,2]
[328948862,1718025064319,-225.83324689,0.00028915,2]
[328948863,1718025064328,-161.09306543,0.00028915,2]
[328948864,1718025064338,-300.73819799,0.00028915,2]
[328948865,1718025064348,-181.12309527,0.00028915,2]
[328948866,1718025064361,-177.78637968,0.00028916,2]
[328948867,1718025064370,-400.75538209,0.00028917,2]
[328948868,1718025064380,-150.5,0.0002892,35]
[328948869,1718025064391,-249.0,0.0002892,35]
[328948870,1718025064401,-249.0,0.0002892,35]
[328948871,1718025064411,-249.0,0.0002892,35]
[328948872,1718025064420,-251.49,0.0002892,35]
[328948873,1718025064430,-155.05081033,0.00028925,2]
[328948874,1718025064440,-250.20487116,0.00028925,2]
[328948875,1718025064450,-242.13468129,0.00028925,2]
[328948876,1718025064460,-9422.50736884,0.00028925,2]
[328948877,1718025064469,-2440.15741232,0.00028925,2]
[328948878,1718025064479,-1689.82993633,0.00028925,2]
[328948879,1718025064488,-155.05359262,0.00028925,2]
[328948880,1718025064498,-369.68878488,0.00028925,2]
[328948881,1718025064508,-181.8094771,0.00028925,2]
[328948882,1718025064518,-298.51015218,0.00028925,2]
[328948883,1718025064528,-16608.6832138,0.00028926,2]
[328948884,1718025064538,-157.69330776,0.00028926,2]
[328948885,1718025064547,-457.47424825,0.00028927,2]
[328948886,1718025064557,-13481.93972849,0.00028927,2]
[328948887,1718025064566,-155.01395126,0.00028927,7]
[328948888,1718025064575,-225.1695884,0.00028927,2]
[328948889,1718025064585,-762.50308859,0.00028927,2]
[328948890,1718025064595,-335.63919406,0.00028927,2]
[328948891,1718025064605,-155.01395126,0.00028927,2]
[328948892,1718025064616,-236.38,0.0002893,35]
[328948893,1718025064627,-150.5,0.0002893,35]
[328948894,1718025064637,-249.0,0.0002893,35]
[328948895,1718025064660,-249.0,0.0002893,35]
[328948896,1718025064670,-153.92,0.0002893,35]
[328948897,1718025064680,-249.0,0.0002893,35]
[328948898,1718025064689,-249.0,0.0002893,35]
[328948899,1718025064699,-1281.7000677,0.00028931,2]
[328948900,1718025064709,-151.0,0.00028938,2]
[328948901,1718025064719,-157.961847,0.00028938,2]
[328948902,1718025064730,-151.0,0.00028938,2]
[328948903,1718025064740,-174.555977,0.00028938,2]
[328948904,1718025064751,-174.555977,0.00028938,2]
[328948905,1718025064761,-151.0,0.00028938,2]
[328948906,1718025064771,-151.0,0.00028938,2]
[328948907,1718025064781,-151.0,0.00028938,2]
[328948908,1718025064790,-151.0,0.00028938,2]
[328948909,1718025064800,-150.5,0.0002896,35]
[328948910,1718025064810,-281.74,0.0002897,35]
[328948911,1718025064819,-150.5,0.0002897,35]
[328948912,1718025064829,-156.33,0.0002897,35]
[328948913,1718025064839,-216.6,0.0002898,35]
[328948914,1718025064848,-150.5,0.0002898,35]
[328948915,1718025064859,-150.5,0.0002898,35]
[328948916,1718025064868,-150.5,0.0002898,35]
[328948917,1718025064879,-1045.30962503,0.00028985,15]
[328948918,1718025064889,-151.0,0.00028985,2]
[328948919,1718025064899,-151.0,0.00028985,2]
[328948920,1718025064909,-154.338792,0.00028985,2]
[328948921,1718025064919,-151.0,0.00028985,2]
[328948922,1718025064929,-1000.0,0.00028985,10]
[328948923,1718025064939,-1000.0,0.00028985,10]
[328948924,1718025064948,-1000.0,0.00028985,10]
[328948925,1718025064958,-1000.0,0.00028985,10]
[328948926,1718025065023,-1000.0,0.00028985,10]
[328948927,1718025065033,-1000.0,0.00028985,10]
[328948928,1718025065043,-1000.0,0.00028985,10]
[328948929,1718025065053,-1000.0,0.00028985,10]
[328948930,1718025065063,-1000.0,0.00028985,10]
[328948931,1718025065073,-1000.0,0.00028985,10]
[328948932,1718025065083,-1000.0,0.00028985,10]
[328948933,1718025065092,-475.82345,0.00028985,10]
[328948934,1718025065102,-151.0,0.00028985,2]
[328948935,1718025065112,-153.475458,0.00028985,2]
[328948936,1718025065122,-328.005105,0.00028985,2]
[328948937,1718025065131,-328.005105,0.00028985,2]
[328948938,1718025065140,-151.0,0.00028985,2]
[328948939,1718025065150,-151.0,0.00028985,2]
[328948940,1718025065160,-151.0,0.00028985,2]
[328948941,1718025065170,-151.0,0.00028985,2]
[328948942,1718025065180,-151.0,0.00028985,2]
[328948943,1718025065190,-151.0,0.00028985,2]
[328948944,1718025065200,-169.009514,0.00028985,2]
[328948945,1718025065210,-151.0,0.00028985,2]
[328948946,1718025065220,-525.55813134,0.00028985,2]
[328948947,1718025065230,-184.08333251,0.00028985,15]
[328948948,1718025065239,-1048.17151538,0.00028985,2]
[328948949,1718025065249,-1359242.8288675,0.00028985,120]
[328948950,1718025065410,-972.69,0.00020713,2]
[328948951,1718025065420,-972.69,0.00020987,2]
[328948952,1718025065430,-972.69,0.00021261,2]
[328948953,1718025065440,-972.69,0.00021535,2]
[328948954,1718025065450,-972.69,0.00021809,2]
[328948955,1718025065460,-972.69,0.00022083,2]
[328948956,1718025065470,-972.69,0.00022357,2]
[328948957,1718025065481,-972.69,0.00022631,2]
[328948958,1718025065490,-972.69,0.00022905,2]
[328948959,1718025065500,-972.69,0.00023179,2]
[328948960,1718025065511,-972.69,0.00023453,2]
[328948961,1718025065521,-972.69,0.00023727,2]
[328948962,1718025065530,-972.69,0.00024001,2]
[328948963,1718025065540,-31153.32786651,0.00028985,120]
[328948964,1718025065557,-972.69,0.00024275,2]
[328948965,1718025065568,-33077.62798107,0.00028985,120]
[328948966,1718025065580,-43114.34251106,0.00028985,120]
[328948967,1718025065644,-790.0,0.00024549,2]
[328948968,1718025065662,-182.69,0.00024549,2]
[328948969,1718025065671,-972.69,0.00024823,2]
[328948970,1718025065682,-972.69,0.00025097,2]
[328948971,1718025065692,-972.69,0.00025371,2]
[328948972,1718025065701,-972.69,0.00025645,2]
[328948973,1718025065711,-761.58293046,0.00025919,2]
[328948974,1718025065724,-211.10706954,0.00025919,2]
[328948975,1718025065733,-972.70150158,0.00026193,2]
[328948976,1718025065743,-32128.98166729,0.00028985,120]
[328948977,1718025065759,-3848.0,0.00028985,120]
[328948978,1718025698286,155.01395126,9.999e-05,2]
[328948979,1718025921338,155.01395126,9.999e-05,2]
[328948980,1718025925131,686.41586833,9.999e-05,2]
[328948982,1718026022803,156.9359009,9.999e-05,2]
[328948983,1718026027302,282.49542241,9.999e-05,2]
[328948985,1718026065356,722.38007944,9.999e-05,2]
[328949055,1718026236590,-155.01395126,0.00018793,2]
[328949057,1718026236600,-194.18583455,0.00018794,2]
[328949058,1718026236610,-300.0,0.00018892,2]
[328949060,1718026236620,-5844.92702869,0.00018893,2]
[328949066,1718026236769,-260.12980989,0.00018893,2]
[328949067,1718026236781,-650.26151516,0.00018893,2]
[328949085,1718026239546,-1164.15849045,0.00018893,2]
[328949086,1718026239555,-300.0,0.00018893,2]
[328949087,1718026239566,-53636.39935452,0.00018894,2]
[328949088,1718026239575,-721.74899493,0.00018894,2]
[328949089,1718026239585,-515.52689997,0.00018896,2]
[328949090,1718026239596,-552.32050934,0.00018896,2]
[328949091,1718026239606,-156.64880425,0.00018896,2]
[328949092,1718026239616,-282.15702933,0.00018896,2]
[328949093,1718026239626,-21802.47209917,0.00018896,2]
[328949094,1718026239636,-1501.05383916,0.00018897,2]
[328949095,1718026239646,-3166.36482515,0.000189,2]
[328949096,1718026239662,-405.09703491,0.00019178,2]
[328949097,1718026239676,-500.0,0.00019178,2]
[328949098,1718026239686,-500.0,0.00019178,2]
[328949099,1718026239699,-160.194335,0.00019178,2]
[328949100,1718026239710,-500.0,0.00019452,2]
[328949101,1718026239721,-500.0,0.00019452,2]
[328949102,1718026239733,-767.85577405,0.00019689,2]
[328949103,1718026239743,-500.0,0.00019726,2]
[328949104,1718026239753,-500.0,0.00019726,2]
[328949105,1718026239763,-303.20651555,0.00019785,2]
[328949106,1718026239774,-372.58268352,0.00019785,2]
[328949107,1718026239784,-759.78913764,0.00019785,2]
[328949108,1718026239795,-2667.98316031,0.00019785,2]
[328949109,1718026239805,-2667.98316031,0.00019785,2]
[328949110,1718026239815,-2667.98316031,0.00019785,2]
[328949111,1718026239825,-2667.98316031,0.00019785,2]
[328949112,1718026239836,-2667.98316031,0.00019785,2]
[328949113,1718026239846,-2667.98316031,0.00019785,2]
[328949114,1718026239857,-2667.98316031,0.00019785,2]
[328949115,1718026239867,-2667.98316031,0.00019785,2]
[328949116,1718026239878,-2667.98316031,0.00019785,2]
[328949117,1718026239889,-2667.98316031,0.00019785,2]
[328949118,1718026239900,-2667.98316031,0.00019785,2]
[328949119,1718026239911,-2667.98316031,0.00019785,2]
[328949120,1718026239924,-2667.98316031,0.00019785,2]
[328949121,1718026239934,-2667.98316031,0.00019785,2]
[328949122,1718026239945,-2667.98316031,0.00019785,2]
[328949123,1718026239956,-2667.98316031,0.00019785,2]
[328949124,1718026239967,-2667.98316031,0.00019785,2]
[328949125,1718026239977,-2667.98316031,0.00019785,2]
[328949126,1718026239988,-2667.98316031,0.00019785,2]
[328949127,1718026239999,-2667.98316031,0.00019785,2]
[328949128,1718026240010,-2667.98316031,0.00019785,2]
[328949129,1718026240021,-2667.98316031,0.00019785,2]
[328949130,1718026240031,-2667.98316031,0.00019785,2]
[328949131,1718026240042,-2667.98316031,0.00019785,2]
[328949132,1718026240052,-2667.98316031,0.00019785,2]
[328949133,1718026240062,-2667.98316031,0.00019785,2]
[328949134,1718026240072,-2667.98316031,0.00019785,2]
[328949135,1718026240082,-2667.98316031,0.00019785,2]
[328949136,1718026240092,-2667.98316031,0.00019785,2]
[328949137,1718026240103,-2667.98316031,0.00019785,2]
[328949138,1718026240114,-2667.98316031,0.00019785,2]
[328949139,1718026240126,-2667.98316031,0.00019785,2]
[328949140,1718026240136,-2667.98316031,0.00019785,2]
[328949141,1718026240146,-2667.98316031,0.00019785,2]
[328949142,1718026240156,-2667.98316031,0.00019785,2]
[328949143,1718026240168,-2667.98316031,0.00019785,2]
[328949144,1718026240178,-2667.98316031,0.00019785,2]
[328949145,1718026240189,-197.11513324,0.00019786,15]
[328949146,1718026240201,-489.67867836,0.00019786,2]
[328949147,1718026240212,-1979.68991043,0.00019786,2]
[328949148,1718026240223,-28656.4450251,0.00019787,2]
[328949149,1718026240233,-1457.56102675,0.00019864,2]
[328949150,1718026240243,-193.34879195,0.00019884,2]
[328949151,1718026240253,-155.05136365,0.00019884,2]
[328949152,1718026240263,-190.92384673,0.00019884,2]
[328949153,1718026240273,-194.99112884,0.00019884,2]
[328949154,1718026240283,-219.1704812,0.00019884,2]
[328949155,1718026240293,-684.85531577,0.00019884,2]
[328949156,1718026240303,-819.8622721,0.00019884,2]
[328949157,1718026240313,-158.88368216,0.00019884,2]
[328949158,1718026240322,-836.40686191,0.00019884,2]
[328949159,1718026240333,-284.45597088,0.00019884,2]
[328949160,1718026240343,-500.0,0.00019885,2]
[328949161,1718026240353,-500.0,0.00019885,2]
[328949162,1718026240363,-509.62,0.00019885,2]
[328949163,1718026240373,-6598.21,0.00019885,2]
[328949164,1718026240384,-500.0,0.00019885,2]
[328949165,1718026240394,-4266.0574791,0.00019886,2]